fUSD/lending_fUSD_20260628
["ID","MTS","AMOUNT","RATE_DAILY","PERIOD"]
[426577194,1782622247000,-151.0,0.00031507,7]
[426577190,1782622247000,-151.0,0.00031507,7]
[426577169,1782622247000,-216.0,0.00031221,2]
[426577165,1782622247000,-32627.0,0.0003104,20]
[426577163,1782622247000,-1133.33,0.00031027,2]
[426577164,1782622247000,-500.0,0.00031039,2]
[426577167,1782622247000,-246.49912972,0.00031204,2]
[426577166,1782622247000,-200.0,0.000312,11]
[426577160,1782622247000,-1000.0,0.00031,7]
[426577168,1782622247000,-3564.0,0.00031221,2]
[426577162,1782622247000,-157.57173611,0.0003102,2]
[426577159,1782622247000,-671.68,0.000309,7]
[426577157,1782622247000,-1133.33,0.00030822,2]
[426577158,1782622247000,-526.44779167,0.00030882,2]
[426577155,1782622247000,-1133.33,0.00030746,30]
[426577153,1782622247000,-10000.0,0.00030667,2]
[426577154,1782622247000,-966.58073159,0.00030727,2]
[426577156,1782622247000,-157.57173603,0.00030746,2]
[426577161,1782622247000,-4370.54802841,0.00031007,2]
[426577170,1782622247000,-751.97111567,0.00031233,2]
[426577188,1782622247000,-161.954524,0.00031507,7]
[426577174,1782622247000,-1133.33,0.00031438,2]
[426577171,1782622247000,-1133.33,0.00031233,2]
[426577189,1782622247000,-151.0,0.00031507,7]
[426577186,1782622247000,-151.0,0.00031507,7]
[426577185,1782622247000,-151.0,0.00031507,7]
[426577184,1782622247000,-151.0,0.00031507,7]
[426577182,1782622247000,-151.0,0.00031507,7]
[426577183,1782622247000,-151.0,0.00031507,7]
[426577179,1782622247000,-151.0,0.00031506,7]
[426577187,1782622247000,-151.0,0.00031507,7]
[426577180,1782622247000,-151.0,0.00031507,7]
[426577176,1782622247000,-428.07,0.00031501,2]
[426577172,1782622247000,-1133.33,0.00031355,30]
[426577173,1782622247000,-921.51190441,0.00031358,2]
[426577175,1782622247000,-1059.0,0.00031482,7]
[426577178,1782622247000,-151.0,0.00031506,5]
[426577177,1782622247000,-151.0,0.00031506,2]
[426577181,1782622247000,-151.0,0.00031507,7]
[426577304,1782622248000,-4370.54802841,0.0003162,2]
[426577301,1782622248000,-5902.0,0.00031532,10]
[426577299,1782622248000,-224.062693,0.00031507,7]
[426577302,1782622248000,-671.68,0.000316,7]
[426577305,1782622248000,-158.0,0.00031664,30]
[426577297,1782622248000,-201.972095,0.00031507,7]
[426577298,1782622248000,-224.062693,0.00031507,7]
[426577300,1782622248000,-216.298928,0.00031507,7]
[426577296,1782622248000,-224.062693,0.00031507,7]
[426577306,1782622248000,-156.0,0.00031664,30]
[426577303,1782622248000,-746.0,0.0003162,7]
[426577308,1782622248000,-153.0,0.00031664,30]
[426577317,1782622248000,-7482.4675193,0.000322,3]
[426577309,1782622248000,-209.18,0.00031695,3]
[426577311,1782622248000,-1133.33,0.00031963,30]
[426577310,1782622248000,-528.90381401,0.00031864,2]
[426577312,1782622248000,-162.0491,0.00032,2]
[426577315,1782622248000,-3000.0,0.00032,30]
[426577318,1782622248000,-200.0,0.000322,12]
[426577314,1782622248000,-32627.0,0.00032,20]
[426577291,1782622248000,-151.0,0.00031507,7]
[426577313,1782622248000,-5000.0,0.00032,2]
[426577319,1782622248000,-751.36792841,0.0003222,2]
[426577321,1782622248000,-4370.54802841,0.00032233,2]
[426577307,1782622248000,-154.0,0.00031664,30]
[426577295,1782622248000,-201.972095,0.00031507,7]
[426577284,1782622248000,-649.618968,0.00031507,7]
[426577294,1782622248000,-224.062693,0.00031507,7]
[426577268,1782622248000,-302.58828,0.00031507,7]
[426577270,1782622248000,-302.58828,0.00031507,7]
[426577272,1782622248000,-151.0,0.00031507,7]
[426577269,1782622248000,-302.58828,0.00031507,7]
[426577271,1782622248000,-151.0,0.00031507,7]
[426577274,1782622248000,-151.0,0.00031507,7]
[426577273,1782622248000,-151.0,0.00031507,7]
[426577276,1782622248000,-151.0,0.00031507,7]
[426577275,1782622248000,-151.0,0.00031507,7]
[426577278,1782622248000,-294.080741,0.00031507,7]
[426577280,1782622248000,-151.0,0.00031507,7]
[426577292,1782622248000,-201.972095,0.00031507,7]
[426577282,1782622248000,-151.0,0.00031507,7]
[426577277,1782622248000,-151.0,0.00031507,7]
[426577279,1782622248000,-151.0,0.00031507,7]
[426577283,1782622248000,-151.0,0.00031507,7]
[426577285,1782622248000,-649.618968,0.00031507,7]
[426577320,1782622248000,-528.90381401,0.00032224,2]
[426577286,1782622248000,-649.618968,0.00031507,7]
[426577288,1782622248000,-151.0,0.00031507,7]
[426577289,1782622248000,-151.0,0.00031507,7]
[426577287,1782622248000,-649.618968,0.00031507,7]
[426577290,1782622248000,-151.0,0.00031507,7]
[426577293,1782622248000,-201.972095,0.00031507,7]
[426577281,1782622248000,-151.0,0.00031507,7]
[426577322,1782622248000,-160.0,0.00032259,11]
[426577316,1782622248000,-160.0,0.00032039,3]
[426577329,1782622248000,-156.0,0.00032664,30]
[426577357,1782622248000,-159.080331,0.0003296,7]
[426577354,1782622248000,-1323.0,0.00032927,7]
[426577355,1782622248000,-160.0,0.0003295,11]
[426577353,1782622248000,-1449.1274544,0.000329,2]
[426577359,1782622248000,-151.0,0.0003296,7]
[426577356,1782622248000,-151.0,0.0003296,7]
[426577358,1782622248000,-153.252631,0.0003296,7]
[426577360,1782622248000,-151.0,0.0003296,7]
[426577362,1782622248000,-158.321858,0.0003296,7]
[426577361,1782622248000,-155.936596,0.0003296,7]
[426577364,1782622248000,-154.025393,0.0003296,7]
[426577363,1782622248000,-152.113887,0.0003296,7]
[426577371,1782622248000,-151.0,0.0003296,7]
[426577368,1782622248000,-236.539437,0.0003296,7]
[426577369,1782622248000,-151.0,0.0003296,7]
[426577330,1782622248000,-161.0,0.00032664,30]
[426577370,1782622248000,-236.539437,0.0003296,7]
[426577366,1782622248000,-151.0,0.0003296,7]
[426577365,1782622248000,-156.759171,0.0003296,7]
[426577372,1782622248000,-195.72195,0.0003296,7]
[426577374,1782622248000,-195.72195,0.0003296,7]
[426577373,1782622248000,-236.539437,0.0003296,7]
[426577375,1782622248000,-236.539437,0.0003296,7]
[426577377,1782622248000,-195.72195,0.0003296,7]
[426577376,1782622248000,-195.72195,0.0003296,7]
[426577352,1782622248000,-159.01960226,0.000329,2]
[426577350,1782622248000,-800.0,0.000329,12]
[426577367,1782622248000,-151.0,0.0003296,7]
[426577349,1782622248000,-151.0,0.00032877,7]
[426577351,1782622248000,-966.3296619,0.000329,2]
[426577328,1782622248000,-163.0,0.00032664,30]
[426577325,1782622248000,-246.49912972,0.00032408,2]
[426577323,1782622248000,-528.90381401,0.00032393,2]
[426577326,1782622248000,-1133.33,0.00032572,30]
[426577327,1782622248000,-150.458,0.00032584,7]
[426577331,1782622248000,-153.0,0.00032664,30]
[426577333,1782622248000,-207.98,0.00032707,3]
[426577332,1782622248000,-5207.0,0.000327,5]
[426577334,1782622248000,-200.0,0.00032792,7]
[426577336,1782622248000,-200.0,0.00032792,7]
[426577337,1782622248000,-200.0,0.00032792,7]
[426577324,1782622248000,-671.68,0.000324,7]
[426577338,1782622248000,-2000.0,0.00032798,10]
[426577348,1782622248000,-151.0,0.00032877,7]
[426577335,1782622248000,-200.0,0.00032792,7]
[426577341,1782622248000,-912.05,0.00032863,2]
[426577345,1782622248000,-407.7420154,0.00032876,14]
[426577342,1782622248000,-152.0,0.0003287,3]
[426577343,1782622248000,-290.67874438,0.0003287,5]
[426577347,1782622248000,-158.591731,0.00032877,7]
[426577346,1782622248000,-196.87554933,0.00032877,7]
[426577340,1782622248000,-4370.54802841,0.00032847,2]
[426577339,1782622248000,-200.33333333,0.00032839,32]
[426577344,1782622248000,-152.0,0.0003287,5]
[426577400,1782622249000,-302.58828,0.0003296,7]
[426577404,1782622249000,-151.0,0.0003296,7]
[426577398,1782622249000,-302.58828,0.0003296,7]
[426577399,1782622249000,-151.0,0.0003296,7]
[426577401,1782622249000,-302.58828,0.0003296,7]
[426577403,1782622249000,-151.0,0.0003296,7]
[426577402,1782622249000,-302.58828,0.0003296,7]
[426577408,1782622249000,-151.0,0.0003296,7]
[426577407,1782622249000,-151.0,0.0003296,7]
[426577405,1782622249000,-151.0,0.0003296,7]
[426577409,1782622249000,-151.0,0.0003296,7]
[426577410,1782622249000,-151.0,0.0003296,7]
[426577412,1782622249000,-170.895144,0.0003296,7]
[426577396,1782622249000,-151.0,0.0003296,7]
[426577411,1782622249000,-151.0,0.0003296,7]
[426577406,1782622249000,-151.0,0.0003296,7]
[426577397,1782622249000,-151.0,0.0003296,7]
[426577378,1782622249000,-151.0,0.0003296,7]
[426577394,1782622249000,-457.77777,0.0003296,7]
[426577413,1782622249000,-151.0,0.0003296,7]
[426577383,1782622249000,-151.0,0.0003296,7]
[426577382,1782622249000,-151.0,0.0003296,7]
[426577380,1782622249000,-151.0,0.0003296,7]
[426577379,1782622249000,-151.0,0.0003296,7]
[426577385,1782622249000,-151.0,0.0003296,7]
[426577386,1782622249000,-151.0,0.0003296,7]
[426577384,1782622249000,-151.0,0.0003296,7]
[426577387,1782622249000,-151.0,0.0003296,7]
[426577388,1782622249000,-151.0,0.0003296,7]
[426577389,1782622249000,-151.0,0.0003296,7]
[426577390,1782622249000,-151.0,0.0003296,7]
[426577391,1782622249000,-151.0,0.0003296,7]
[426577393,1782622249000,-457.77777,0.0003296,7]
[426577395,1782622249000,-457.77777,0.0003296,7]
[426577392,1782622249000,-457.77777,0.0003296,7]
[426577414,1782622249000,-151.0,0.0003296,7]
[426577381,1782622249000,-236.350281,0.0003296,7]
[426577421,1782622249000,-151.000006,0.0003296,7]
[426577443,1782622249000,-151.0,0.00032966,7]
[426577439,1782622249000,-151.0,0.00032966,7]
[426577437,1782622249000,-151.0,0.00032966,7]
[426577441,1782622249000,-151.0,0.00032966,7]
[426577438,1782622249000,-151.0,0.00032966,7]
[426577444,1782622249000,-151.0,0.00032966,7]
[426577436,1782622249000,-151.0,0.00032966,7]
[426577440,1782622249000,-151.0,0.00032966,7]
[426577442,1782622249000,-151.0,0.00032966,7]
[426577447,1782622249000,-274.493311,0.00032966,7]
[426577446,1782622249000,-151.0,0.00032966,7]
[426577448,1782622249000,-500.0,0.00032999,2]
[426577449,1782622249000,-500.0,0.00032999,2]
[426577451,1782622249000,-68565.11112129,0.00033,25]
[426577452,1782622249000,-193663.86610285,0.00033,2]
[426577450,1782622249000,-500.0,0.00032999,2]
[426577445,1782622249000,-151.0,0.00032966,7]
[426577435,1782622249000,-157.546663,0.00032966,7]
[426577415,1782622249000,-649.618968,0.0003296,7]
[426577433,1782622249000,-216.298928,0.0003296,7]
[426577418,1782622249000,-649.618968,0.0003296,7]
[426577417,1782622249000,-649.618968,0.0003296,7]
[426577416,1782622249000,-649.618968,0.0003296,7]
[426577419,1782622249000,-151.0,0.0003296,7]
[426577420,1782622249000,-151.0,0.0003296,7]
[426577422,1782622249000,-151.0,0.0003296,7]
[426577423,1782622249000,-151.0,0.0003296,7]
[426577424,1782622249000,-151.0,0.0003296,7]
[426577425,1782622249000,-201.972095,0.0003296,7]
[426577427,1782622249000,-224.062693,0.0003296,7]
[426577432,1782622249000,-224.062693,0.0003296,7]
[426577431,1782622249000,-224.062693,0.0003296,7]
[426577430,1782622249000,-201.972095,0.0003296,7]
[426577428,1782622249000,-201.972095,0.0003296,7]
[426577429,1782622249000,-224.062693,0.0003296,7]
[426577426,1782622249000,-201.972095,0.0003296,7]
[426577434,1782622249000,-32627.0,0.0003296,20]
[426577453,1782622268000,193.0,0.00031043,120]
[426577454,1782622428000,500.0,0.00037327,120]
[426577455,1782622428000,500.0,0.00037327,120]
[426577457,1782622429000,217.81,0.00037327,120]
[426577456,1782622429000,500.0,0.00037327,120]
[426577458,1782622450000,-5813.78254537,0.00015,2]
[426577459,1782622462000,-150.0,0.00014999,2]
[426577462,1782622504000,2441.93,0.00028701,120]
[426577463,1782622515000,-151.0,0.00014999,2]
[426577464,1782622528000,-151.0,0.00014999,2]
[426577465,1782622540000,-151.0,0.00014999,2]
[426577466,1782622552000,-151.0,0.00014999,2]
[426577467,1782622564000,-350.95,0.00014999,2]
[426577468,1782622576000,-45.05,0.00014999,2]
[426577469,1782622630000,-200.0,0.00014999,2]
[426577470,1782622642000,-200.0,0.00014999,2]
[426577471,1782622653000,53387.27525212,0.00019,30]
[426577475,1782622664000,30680.3198294,0.00037327,120]
[426577476,1782622797000,-484.95718517,0.000142,2]
[426577478,1782622797000,-150.0,0.00014341,2]
[426577477,1782622797000,-272.00214906,0.000142,2]
[426577480,1782622797000,-165.89413595,0.000146,2]
[426577481,1782622797000,-150.0,0.00014625,2]
[426577482,1782622797000,-225.0,0.00014767,2]
[426577479,1782622797000,-150.0,0.00014483,2]
[426577483,1782622797000,-600.0,0.00014999,2]
[426577484,1782622797000,-1000.0,0.00014999,2]
[426577489,1782622797000,-25999.32082858,0.00015,2]
[426577488,1782622797000,-250.0,0.00015,2]
[426577487,1782622797000,-150.0,0.00014999,2]
[426577485,1782622797000,-500.0,0.00014999,2]
[426577486,1782622797000,-189.82570124,0.00014999,2]
[426577490,1782622822000,-7657.71278046,0.00014907,2]
[426577491,1782622822000,-2342.28721954,0.00015,2]
[426577492,1782622827000,-10000.0,0.00015,2]
[426577493,1782622827000,-10000.0,0.00015,2]
[426577494,1782622828000,-10000.0,0.00015,2]
[426577497,1782622830000,-10000.0,0.00015,2]
[426577496,1782622830000,-10000.0,0.00015,2]
[426577495,1782622830000,-10000.0,0.00015,2]
[426577498,1782622831000,-10000.0,0.00015,2]
[426577499,1782622831000,-10000.0,0.00015,2]
[426577501,1782622832000,-10000.0,0.00015,2]
[426577500,1782622832000,-10000.0,0.00015,2]
[426577503,1782622833000,-9342.05913376,0.00015,2]
[426577502,1782622833000,-657.94086624,0.000149,2]
[426577505,1782622872000,-5000.0,0.00015,2]
[426577506,1782622873000,8107.83746029,0.00037325,120]
[426577508,1782622917000,237.79777696,0.00037325,120]
[426577509,1782622944000,-150.0,0.00015,2]
[426577510,1782622959000,-400.0,0.00015,2]
[426577511,1782622971000,-150.0,0.0001455,2]
[426577514,1782623024000,732.196,0.00037325,120]
[426577513,1782623024000,-208.6184678,0.0001455,2]
[426577515,1782623034000,50000.0,0.00037325,120]
[426577516,1782623077000,-200.0,0.00014899,2]
[426577517,1782623090000,-214.093,0.00014899,2]
[426577518,1782623143000,-150.0,0.00014999,2]
[426577519,1782623166000,164.10033649,0.00014,14]
[426577520,1782623196000,-4370.54802845,0.00014999,2]
[426577521,1782623208000,-4370.54802845,0.00014999,2]
[426577522,1782623221000,-158.0,0.00014999,2]
[426577523,1782623233000,-158.0,0.00014999,2]
[426577524,1782623253000,-2256.08361102,0.00014999,2]
[426577525,1782623253000,-170.32533101,0.00014999,2]
[426577526,1782623365000,-200.0,0.000143,2]
[426577529,1782623374000,-500.0,0.00014997,2]
[426577527,1782623374000,-250.0,0.0001465,2]
[426577528,1782623374000,-500.0,0.00014997,2]
[426577531,1782623374000,-500.0,0.00014997,2]
[426577532,1782623374000,-500.0,0.00014997,2]
[426577534,1782623374000,-1001.96444778,0.00014999,2]
[426577533,1782623374000,-334.52363922,0.00014997,2]
[426577530,1782623374000,-500.0,0.00014997,2]
[426577535,1782623374000,-2968.4618825,0.00014999,2]
[426577538,1782623402000,-1617.45869483,0.00014999,2]
[426577539,1782623402000,-2643.42301978,0.00015,2]
[426577537,1782623402000,-4437.27619069,0.00014999,2]
[426577542,1782623431000,-788.97247197,0.00015,2]
[426577570,1782623432000,-166.66,0.00018109,2]
[426577572,1782623432000,-190.84,0.0001817,2]
[426577568,1782623432000,-19152.50867629,0.00018,2]
[426577566,1782623432000,-500.0,0.00017999,2]
[426577571,1782623432000,-157.50043946,0.00018156,7]
[426577567,1782623432000,-464.14781804,0.00017999,2]
[426577565,1782623432000,-500.0,0.00017999,2]
[426577569,1782623432000,-19320.30132371,0.00018,2]
[426577573,1782623432000,-166.66,0.0001849,2]
[426577578,1782623432000,-5069.43461676,0.00018969,2]
[426577575,1782623432000,-633.43,0.00018852,2]
[426577576,1782623432000,-424.4267587,0.00018852,2]
[426577581,1782623432000,-633.43,0.00019324,2]
[426577579,1782623432000,-157.50043946,0.00019224,7]
[426577580,1782623432000,-166.66,0.00019253,2]
[426577584,1782623432000,-166.83,0.0001941,2]
[426577582,1782623432000,-8029.57,0.00019401,2]
[426577577,1782623432000,-166.66,0.00018871,2]
[426577574,1782623432000,-157.50043946,0.0001869,7]
[426577564,1782623432000,-500.0,0.00017999,2]
[426577546,1782623432000,-500.0,0.00015,2]
[426577560,1782623432000,-250.0,0.000165,2]
[426577544,1782623432000,-4169.586923,0.00015,2]
[426577586,1782623432000,-7603.65389243,0.00019478,2]
[426577549,1782623432000,-216.54711319,0.00015091,2]
[426577547,1782623432000,-1301.12264038,0.00015,2]
[426577543,1782623432000,-488.48416866,0.00015,2]
[426577545,1782623432000,-32796.34144773,0.00015,2]
[426577548,1782623432000,-160.0,0.0001505,2]
[426577550,1782623432000,-31443.1737937,0.00015113,2]
[426577552,1782623432000,-7462.8848709,0.0001518,2]
[426577551,1782623432000,-285.05513885,0.00015116,2]
[426577557,1782623432000,-193.0,0.00016499,2]
[426577562,1782623432000,-157.50043946,0.000178,7]
[426577558,1782623432000,-500.0,0.00016499,2]
[426577556,1782623432000,-160.0,0.00016,8]
[426577553,1782623432000,-54384.8791587,0.00015203,2]
[426577555,1782623432000,-250.0,0.0001573,2]
[426577554,1782623432000,-7603.65389248,0.0001563,2]
[426577561,1782623432000,-7603.65389243,0.00017554,2]
[426577559,1782623432000,-250.0,0.00016499,2]
[426577563,1782623432000,-150.0,0.00017999,2]
[426577587,1782623432000,-166.66,0.00019634,2]
[426577633,1782623432000,-414.04897805,0.00024866,2]
[426577597,1782623432000,-9999.99,0.00020951,2]
[426577617,1782623432000,-500.0,0.00024865,2]
[426577612,1782623432000,-3078.45322853,0.00024707,2]
[426577619,1782623432000,-1570.93372877,0.00024866,2]
[426577618,1782623432000,-55723.46364803,0.00024866,2]
[426577611,1782623432000,-500.0,0.00024657,2]
[426577616,1782623432000,-500.0,0.00024865,2]
[426577621,1782623432000,-2431.14498929,0.00024866,2]
[426577622,1782623432000,-4222.3688921,0.00024866,2]
[426577620,1782623432000,-1630.44889811,0.00024866,2]
[426577623,1782623432000,-9610.63083601,0.00024866,2]
[426577624,1782623432000,-400.97149276,0.00024866,2]
[426577627,1782623432000,-693.69606344,0.00024866,2]
[426577590,1782623432000,-439.23,0.00019996,2]
[426577626,1782623432000,-3939.47890881,0.00024866,2]
[426577628,1782623432000,-1503.14592439,0.00024866,2]
[426577629,1782623432000,-1722.67693804,0.00024866,2]
[426577631,1782623432000,-1030.13421599,0.00024866,2]
[426577630,1782623432000,-7707.32122861,0.00024866,2]
[426577632,1782623432000,-284.60163902,0.00024866,2]
[426577615,1782623432000,-500.0,0.00024865,2]
[426577614,1782623432000,-288.66685276,0.00024865,2]
[426577625,1782623432000,-1603.14811095,0.00024866,2]
[426577613,1782623432000,-2185.27401429,0.00024766,2]
[426577588,1782623432000,-633.43,0.00019795,2]
[426577592,1782623432000,-166.66,0.00020015,2]
[426577593,1782623432000,-633.43,0.00020266,2]
[426577596,1782623432000,-173.81,0.00020773,2]
[426577589,1782623432000,-157.50043948,0.00019936,7]
[426577594,1782623432000,-633.43,0.00020738,2]
[426577610,1782623432000,-7603.65389243,0.00023327,2]
[426577598,1782623432000,-9999.99,0.00020951,2]
[426577600,1782623432000,-757.08,0.00020951,2]
[426577595,1782623432000,-500.0,0.00020738,2]
[426577601,1782623432000,-500.0,0.00021012,2]
[426577599,1782623432000,-853.82,0.00020951,2]
[426577606,1782623432000,-1354.23311439,0.00022,2]
[426577604,1782623432000,-500.0,0.00021559,2]
[426577603,1782623432000,-7603.65389243,0.00021403,2]
[426577602,1782623432000,-500.0,0.00021285,2]
[426577605,1782623432000,-5000.0,0.00021918,2]
[426577607,1782623432000,-48645.76688561,0.00022,2]
[426577609,1782623432000,-3600.54,0.00022869,2]
[426577608,1782623432000,-7709.22,0.00022,2]
[426577634,1782623434000,250.0,0.00014,2]
[426577635,1782623438000,-300.0,0.00016,2]
[426577637,1782623438000,-1283.87721992,0.00024866,2]
[426577636,1782623438000,-160.0,0.00019675,2]
[426577638,1782623438000,-407.86461,0.00024866,2]
[426577639,1782623438000,-1536.42271524,0.00024866,2]
[426577643,1782623438000,-18549.71018159,0.00024866,2]
[426577640,1782623438000,-12425.27212196,0.00024866,2]
[426577642,1782623438000,-13431.07560161,0.00024866,2]
[426577645,1782623438000,-59950.0,0.00024866,2]
[426577644,1782623438000,-3960.77355336,0.00024866,2]
[426577646,1782623438000,-634.92215492,0.00024866,2]
[426577641,1782623438000,-3657.78392667,0.00024866,2]
[426577664,1782623440000,-502.0,0.0002537,2]
[426577663,1782623440000,-7603.65389243,0.00025251,2]
[426577661,1782623440000,-50000.0,0.00025,2]
[426577666,1782623440000,-2185.2740142,0.00026584,2]
[426577662,1782623440000,-34654.84,0.00025,2]
[426577657,1782623440000,-1126.048713,0.00025,60]
[426577660,1782623440000,-50000.0,0.00025,2]
[426577656,1782623440000,-565.0,0.00025,60]
[426577658,1782623440000,-47655.08274068,0.00025,60]
[426577655,1782623440000,-624.67,0.00025,60]
[426577654,1782623440000,-29.19854632,0.00025,60]
[426577653,1782623440000,-500.0,0.00024999,2]
[426577652,1782623440000,-151.0,0.00024997,7]
[426577651,1782623440000,-1384.87929876,0.00024866,2]
[426577665,1782623440000,-2185.2740142,0.00025675,2]
[426577659,1782623440000,-3779.63076745,0.00025,7]
[426577678,1782623440000,-513.25,0.00027397,10]
[426577669,1782623440000,-1361.0,0.00027185,2]
[426577680,1782623440000,-500.0,0.000275,7]
[426577668,1782623440000,-7603.65389243,0.00027175,2]
[426577684,1782623440000,-600.08301654,0.00028118,2]
[426577682,1782623440000,-50000.0,0.00028,2]
[426577679,1782623440000,-2185.2740142,0.00027493,2]
[426577686,1782623440000,-401.0,0.00028221,2]
[426577683,1782623440000,-46182.03,0.00028,2]
[426577685,1782623440000,-677.08890844,0.00028218,2]
[426577687,1782623440000,-2185.2740142,0.00028402,2]
[426577681,1782623440000,-300.0,0.000279,10]
[426577677,1782623440000,-615.91,0.00027397,10]
[426577672,1782623440000,-4558.481,0.00027185,2]
[426577675,1782623440000,-405.53,0.00027397,10]
[426577671,1782623440000,-1230.0,0.00027185,2]
[426577667,1782623440000,-166.69,0.00026707,2]
[426577670,1782623440000,-1277.0,0.00027185,2]
[426577676,1782623440000,-739.09,0.00027397,10]
[426577674,1782623440000,-3649.0,0.00027185,2]
[426577713,1782623441000,-153.98455537,0.00029553,2]
[426577697,1782623441000,-21848.34627574,0.00029,2]
[426577698,1782623441000,-500.0,0.00029,2]
[426577706,1782623441000,-1500.0,0.00029005,2]
[426577703,1782623441000,-1500.0,0.00029005,2]
[426577712,1782623441000,-2185.2740142,0.00029312,2]
[426577705,1782623441000,-1500.0,0.00029005,2]
[426577699,1782623441000,-828.1065726,0.00029,2]
[426577710,1782623441000,-13983.0,0.0002912,20]
[426577691,1782623441000,-154.0,0.00028663,30]
[426577688,1782623441000,-151.71,0.00028528,2]
[426577695,1782623441000,-5338.19213494,0.00029,2]
[426577696,1782623441000,-20833.91118305,0.00029,2]
[426577690,1782623441000,-158.0,0.00028663,30]
[426577700,1782623441000,-500.0,0.00029004,2]
[426577692,1782623441000,-500.0,0.00028999,7]
[426577694,1782623441000,-6220.05396344,0.00029,2]
[426577689,1782623441000,-1814.15,0.00028567,2]
[426577709,1782623441000,-7603.65389243,0.000291,2]
[426577693,1782623441000,-518.41064345,0.00028999,7]
[426577704,1782623441000,-1500.0,0.00029005,2]
[426577701,1782623441000,-153.98455537,0.00029005,2]
[426577707,1782623441000,-1583.76792522,0.00029005,2]
[426577702,1782623441000,-1500.0,0.00029005,2]
[426577732,1782623441000,-21767.44840512,0.0003,2]
[426577725,1782623441000,-1500.0,0.000299,10]
[426577726,1782623441000,-188.78703192,0.0003,2]
[426577727,1782623441000,-12499.99,0.0003,2]
[426577731,1782623441000,-15000.0,0.0003,2]
[426577721,1782623441000,-151.0,0.00029899,7]
[426577719,1782623441000,-153.98455537,0.00029827,2]
[426577722,1782623441000,-680.0,0.00029899,5]
[426577717,1782623441000,-182.81455481,0.000298,31]
[426577728,1782623441000,-9999.99,0.0003,2]
[426577724,1782623441000,-3112.12718363,0.000299,2]
[426577718,1782623441000,-1200.0,0.000298,10]
[426577723,1782623441000,-44970.83317884,0.000299,2]
[426577720,1782623441000,-323.03750437,0.00029884,14]
[426577729,1782623441000,-2499.99,0.0003,2]
[426577714,1782623441000,-600.0,0.000296,10]
[426577715,1782623441000,-156.0,0.00029663,30]
[426577730,1782623441000,-24999.99,0.0003,2]
[426577708,1782623441000,-600.08301652,0.00029059,2]
[426577716,1782623441000,-900.0,0.000297,10]
[426577711,1782623441000,-153.98455537,0.00029279,2]
[426577745,1782623443000,-694.55969986,0.0003,2]
[426577746,1782623443000,-3254.75174309,0.0003,2]
[426577742,1782623443000,-1969.25,0.0003,24]
[426577740,1782623443000,-200.0,0.00027244,2]
[426577739,1782623443000,-3594.9884786,0.00026543,2]
[426577741,1782623443000,-732.55159488,0.0003,2]
[426577744,1782623443000,-28.34186979,0.0003,2]
[426577747,1782623443000,-441.41523098,0.0003,2]
[426577743,1782623443000,-190.126,0.0003,24]
[426577748,1782623443000,-1841.94319562,0.0003,2]
[426577758,1782623443000,-44.71124566,0.00030046,2]
[426577752,1782623443000,-644.2197746,0.0003,2]
[426577749,1782623443000,-2374.91341322,0.0003,2]
[426577753,1782623443000,-159.01960225,0.0003,2]
[426577751,1782623443000,-329.85810362,0.0003,2]